Workbook

Sheet ANA SAYFA
C3: Yukarıdaki GÜVENLİK UYARISI nın yanındaki "SEÇENEKLER" yazısına basarak "Bu içeriği etkinleştir" seçeneğini işaretleyip tamam deyin.
B4: BİLGİ GİRİŞİ BUTONLARI
G5: NOT:
G6: 1) Bu program sadece bir sınıf için hazırlanmıştır. Birden çok sınıfa uygulamak için belgeyi farklı kaydedip,
G7: hangi sınıf için kullanmak istiyorsanız o sınıfın adı ile kaydedin
G8: 2)Programı kullanırken ilk olarak aşağıdaki kırmızı butona basarak sınıf listesini oluşturun. Oluşturduğunuz sınıf listesi
G9: diğer sayfalarda gözükecektir.
G10: 3)Bu program öğrencilerinizin bireysel gelişiminin süreç içerisinde nasıl değiştiğini anlamanız(anlamamız) için
G11: hazırlanmıştır.
G12: 4)Öğrenci gelişimini "ÖĞRENCİ GELİŞİMİ" sayfasından gözlemleyebilirsiniz.
G13: 5)Ödev , Davranış ve Derse katılım takibini iyi öğrencilerden birine verilen bir liste ile takip ettirebilir , sonra bu liste toplu olarak
G14: bu programa kaydedilebilir.
G15: 6)Programı hazırlamadaki nihayi amacım , öğrencinin olumlu veya olumsuz gidişatını görüp ona göre tedbirler almak veya ona göre
G16: (öğrencinin olumsuz gidişatı varsa) sorunun kaynağına ulaşmaktır.
B26: Sınıf listesi oluşturmayı unutmayın

Sheet SINIF LİSTESİ
A2: NO | B2: ADI SOYADI
A3: 91 | B3: ENES
A4: 126 | B4: BİLAL
A5: 169 | B5: YASİN
A6: 170 | B6: YİĞİT
A7: 206 | B7: DİLAN
A8: 219 | B8: AHSEN
A9: 234 | B9: NEHİR
A10: 317 | B10: MERYEM
A11: 319 | B11: NEHİR
A12: 331 | B12: YUNUS
A13: 359 | B13: ELİF
A14: 383 | B14: FURKAN
A15: 386 | B15: MEDİHA
A16: 420 | B16: BERTAN
A17: 430 | B17: CİHANNUR
A18: 459 | B18: AZİZ
A19: 462 | B19: HÜMEYSANUR
A20: 517 | B20: HAYRUNNİSA
A21: 542 | B21: NİMETULLAH
A22: 544 | B22: AYCAN
A23: 558 | B23: ELİF
A24: 585 | B24: AHMET
A25: 604 | B25: AZAM
A26: 644 | B26: DEMETNUR
A27: 696 | B27: ELİF
A28: 716 | B28: ERKAN
A29: 933 | B29: NİSA
A30: 5000 | B30: ASUDE
A31: 5001 | B31: SONGÜL
A32: 5023 | B32: TUANA
A33: 5606 | B33: BERAT

Sheet NOT
C1: 1.DÖNEM | J1: 1.DÖNEM ORTALAMA | K1: 2.DÖNEM | R1: 2.DÖNEM ORTALAMA | S1: YIL SONU ORT
A2: ='SINIF LİSTESİ'!A2 -> NO | B2: ='SINIF LİSTESİ'!B2 -> ADI SOYADI | C2: Y1 | D2: Y2 | E2: P1 | F2: P2 | G2: DİE1 | H2: DİE2 | I2: DİE3 | K2: Y1 | L2: Y2 | M2: P1 | N2: P2 | O2: DİE1 | P2: DİE2 | Q2: DİE3
A3: ='SINIF LİSTESİ'!A3 -> 91 | B3: ='SINIF LİSTESİ'!B3 -> ENES | C3: 30 | D3: 56 | E3: 100 | F3: 100 | G3: 100 | H3: 100 | I3: 100 | J3: =SUM(AVERAGE(AVERAGE(E3:F3)+AVERAGE(G3:I3))/2+C3+D3)/3 -> 62 | K3: 30 | L3: 56 | M3: 44 | O3: 50 | R3: =SUM(AVERAGE(AVERAGE(M3:N3)+AVERAGE(O3:Q3))/2+K3+L3)/3 -> 44.33333333 | S3: =(J3+R3)/2 -> 53.16666667
A4: ='SINIF LİSTESİ'!A4 -> 126 | B4: ='SINIF LİSTESİ'!B4 -> BİLAL | C4: 55 | D4: 67 | E4: 78 | F4: 100 | G4: 100 | I4: 100 | J4: =SUM(AVERAGE(AVERAGE(E4:F4)+AVERAGE(G4:I4))/2+C4+D4)/3 -> 72.16666667 | K4: 55 | L4: 67 | M4: 78 | R4: =SUM(AVERAGE(AVERAGE(M4:N4)+AVERAGE(O4:Q4))/2+K4+L4)/3 ->  | S4: =(J4+R4)/2 -> 
A5: ='SINIF LİSTESİ'!A5 -> 169 | B5: ='SINIF LİSTESİ'!B5 -> YASİN | C5: 33 | D5: 78 | E5: 99 | G5: 20 | J5: 56.83333333 | K5: 33 | L5: 78 | M5: 99
A6: ='SINIF LİSTESİ'!A6 -> 170 | B6: ='SINIF LİSTESİ'!B6 -> YİĞİT | C6: 50 | D6: 50 | E6: 50 | K6: 50 | L6: 50 | M6: 50
A7: ='SINIF LİSTESİ'!A7 -> 206 | B7: ='SINIF LİSTESİ'!B7 -> DİLAN | C7: 90 | D7: 90 | E7: 90 | K7: 90 | L7: 90 | M7: 90
A8: ='SINIF LİSTESİ'!A8 -> 219 | B8: ='SINIF LİSTESİ'!B8 -> AHSEN | C8: 34 | D8: 45 | E8: 56 | K8: 34 | L8: 45 | M8: 56
A9: ='SINIF LİSTESİ'!A9 -> 234 | B9: ='SINIF LİSTESİ'!B9 -> NEHİR | C9: 89 | D9: 45 | E9: 34 | K9: 89 | L9: 45 | M9: 34
A10: ='SINIF LİSTESİ'!A10 -> 317 | B10: ='SINIF LİSTESİ'!B10 -> MERYEM | C10: 34 | D10: 66 | E10: 77 | K10: 34 | L10: 66 | M10: 77
A11: ='SINIF LİSTESİ'!A11 -> 319 | B11: ='SINIF LİSTESİ'!B11 -> NEHİR | C11: 34 | D11: 55 | E11: 66 | K11: 34 | L11: 55 | M11: 66
A12: ='SINIF LİSTESİ'!A12 -> 331 | B12: ='SINIF LİSTESİ'!B12 -> YUNUS
A13: ='SINIF LİSTESİ'!A13 -> 359 | B13: ='SINIF LİSTESİ'!B13 -> ELİF | J13: =SUM(AVERAGE(AVERAGE(E13:F13)+AVERAGE(G13:I13))/2+C13+D13)/3 -> 
A14: ='SINIF LİSTESİ'!A14 -> 383 | B14: ='SINIF LİSTESİ'!B14 -> FURKAN
A15: ='SINIF LİSTESİ'!A15 -> 386 | B15: ='SINIF LİSTESİ'!B15 -> MEDİHA
A16: ='SINIF LİSTESİ'!A16 -> 420 | B16: ='SINIF LİSTESİ'!B16 -> BERTAN
A17: ='SINIF LİSTESİ'!A17 -> 430 | B17: ='SINIF LİSTESİ'!B17 -> CİHANNUR
A18: ='SINIF LİSTESİ'!A18 -> 459 | B18: ='SINIF LİSTESİ'!B18 -> AZİZ
A19: ='SINIF LİSTESİ'!A19 -> 462 | B19: ='SINIF LİSTESİ'!B19 -> HÜMEYSANUR
A20: ='SINIF LİSTESİ'!A20 -> 517 | B20: ='SINIF LİSTESİ'!B20 -> HAYRUNNİSA
A21: ='SINIF LİSTESİ'!A21 -> 542 | B21: ='SINIF LİSTESİ'!B21 -> NİMETULLAH
A22: ='SINIF LİSTESİ'!A22 -> 544 | B22: ='SINIF LİSTESİ'!B22 -> AYCAN
A23: ='SINIF LİSTESİ'!A23 -> 558 | B23: ='SINIF LİSTESİ'!B23 -> ELİF
A24: ='SINIF LİSTESİ'!A24 -> 585 | B24: ='SINIF LİSTESİ'!B24 -> AHMET
A25: ='SINIF LİSTESİ'!A25 -> 604 | B25: ='SINIF LİSTESİ'!B25 -> AZAM
A26: ='SINIF LİSTESİ'!A26 -> 644 | B26: ='SINIF LİSTESİ'!B26 -> DEMETNUR
A27: ='SINIF LİSTESİ'!A27 -> 696 | B27: ='SINIF LİSTESİ'!B27 -> ELİF
A28: ='SINIF LİSTESİ'!A28 -> 716 | B28: ='SINIF LİSTESİ'!B28 -> ERKAN
A29: ='SINIF LİSTESİ'!A29 -> 933 | B29: ='SINIF LİSTESİ'!B29 -> NİSA
A30: ='SINIF LİSTESİ'!A30 -> 5000 | B30: ='SINIF LİSTESİ'!B30 -> ASUDE
A31: ='SINIF LİSTESİ'!A31 -> 5001 | B31: ='SINIF LİSTESİ'!B31 -> SONGÜL
A32: ='SINIF LİSTESİ'!A32 -> 5023 | B32: ='SINIF LİSTESİ'!B32 -> TUANA
A33: ='SINIF LİSTESİ'!A33 -> 5606 | B33: ='SINIF LİSTESİ'!B33 -> BERAT
A34: ='SINIF LİSTESİ'!A34 -> 0 | B34: ='SINIF LİSTESİ'!B34 -> 0
A35: ='SINIF LİSTESİ'!A35 -> 0 | B35: ='SINIF LİSTESİ'!B35 -> 0
A36: ='SINIF LİSTESİ'!A36 -> 0 | B36: ='SINIF LİSTESİ'!B36 -> 0
A37: ='SINIF LİSTESİ'!A37 -> 0 | B37: ='SINIF LİSTESİ'!B37 -> 0
A38: ='SINIF LİSTESİ'!A38 -> 0 | B38: ='SINIF LİSTESİ'!B38 -> 0
A39: ='SINIF LİSTESİ'!A39 -> 0 | B39: ='SINIF LİSTESİ'!B39 -> 0
A40: ='SINIF LİSTESİ'!A40 -> 0 | B40: ='SINIF LİSTESİ'!B40 -> 0
A41: ='SINIF LİSTESİ'!A41 -> 0 | B41: ='SINIF LİSTESİ'!B41 -> 0
A42: ='SINIF LİSTESİ'!A42 -> 0 | B42: ='SINIF LİSTESİ'!B42 -> 0
A43: ='SINIF LİSTESİ'!A43 -> 0 | B43: ='SINIF LİSTESİ'!B43 -> 0
A44: ='SINIF LİSTESİ'!A44 -> 0 | B44: ='SINIF LİSTESİ'!B44 -> 0
A45: ='SINIF LİSTESİ'!A45 -> 0 | B45: ='SINIF LİSTESİ'!B45 -> 0
A46: ='SINIF LİSTESİ'!A46 -> 0 | B46: ='SINIF LİSTESİ'!B46 -> 0
A47: ='SINIF LİSTESİ'!A47 -> 0 | B47: ='SINIF LİSTESİ'!B47 -> 0

Sheet TEST
A1: Not: | B1: 100 üzerinden değerlendirilecek, yanlışlar sayılmayacak (Örnek 20 soruda 10 doğrusu varsa testten 50 almış olacak)
A2: ='SINIF LİSTESİ'!A2 -> NO | B2: ='SINIF LİSTESİ'!B2 -> ADI SOYADI | C2: TEST1 | D2: TEST2 | E2: TEST3 | F2: TEST4 | G2: TEST5 | H2: TEST6 | I2: TEST7 | J2: TEST8 | K2: TEST9 | L2: TEST10 | M2: TEST11 | N2: TEST12 | O2: TEST13 | P2: TEST14 | Q2: TEST15
A3: ='SINIF LİSTESİ'!A3 -> 91 | B3: ='SINIF LİSTESİ'!B3 -> ENES | C3: 40 | D3: 50 | E3: 60 | F3: 70 | G3: 55 | H3: 40 | I3: 25 | J3: 10 | K3: 30 | L3: 50 | M3: 70 | N3: 90 | O3: 100 | P3: 70 | Q3: 60 | R3: =IF(C3<>"",AVERAGE(C3:Q3),"") -> 54.66666667
A4: ='SINIF LİSTESİ'!A4 -> 126 | B4: ='SINIF LİSTESİ'!B4 -> BİLAL | C4: 50 | D4: 50 | E4: 50 | F4: 50 | G4: 50 | H4: 50 | I4: 50 | J4: 50 | K4: 50 | L4: 50 | M4: 50 | N4: 50 | O4: 50 | P4: 50 | Q4: 50 | R4: =IF(C4<>"",AVERAGE(C4:Q4),"") -> 50
A5: ='SINIF LİSTESİ'!A5 -> 169 | B5: ='SINIF LİSTESİ'!B5 -> YASİN | C5: 70 | D5: 75 | E5: 80 | F5: 85 | G5: 90 | H5: 80 | I5: 70 | J5: 60 | K5: 50 | L5: 40 | M5: 90 | N5: 95 | O5: 97 | P5: 90 | Q5: 80 | R5: 76.8
A6: ='SINIF LİSTESİ'!A6 -> 170 | B6: ='SINIF LİSTESİ'!B6 -> YİĞİT | C6: 0 | D6: 0 | E6: 0 | F6: 0 | G6: 0 | H6: 0 | I6: 0 | J6: 0 | K6: 0 | L6: 0 | M6: 0 | N6: 0 | O6: 0 | P6: 0 | Q6: 0 | R6: 0
A7: ='SINIF LİSTESİ'!A7 -> 206 | B7: ='SINIF LİSTESİ'!B7 -> DİLAN | C7: 5 | D7: 5 | E7: 5 | F7: 5 | G7: 5 | H7: 5 | I7: 5 | J7: 5 | K7: 5 | L7: 5 | M7: 5 | N7: 5 | O7: 5 | P7: 5 | Q7: 5 | R7: 5
A8: ='SINIF LİSTESİ'!A8 -> 219 | B8: ='SINIF LİSTESİ'!B8 -> AHSEN | C8: 40 | R8: 40
A9: ='SINIF LİSTESİ'!A9 -> 234 | B9: ='SINIF LİSTESİ'!B9 -> NEHİR | C9: 67 | R9: 67
A10: ='SINIF LİSTESİ'!A10 -> 317 | B10: ='SINIF LİSTESİ'!B10 -> MERYEM | C10: 98 | R10: 98
A11: ='SINIF LİSTESİ'!A11 -> 319 | B11: ='SINIF LİSTESİ'!B11 -> NEHİR | C11: 34 | R11: 34
A12: ='SINIF LİSTESİ'!A12 -> 331 | B12: ='SINIF LİSTESİ'!B12 -> YUNUS
A13: ='SINIF LİSTESİ'!A13 -> 359 | B13: ='SINIF LİSTESİ'!B13 -> ELİF
A14: ='SINIF LİSTESİ'!A14 -> 383 | B14: ='SINIF LİSTESİ'!B14 -> FURKAN
A15: ='SINIF LİSTESİ'!A15 -> 386 | B15: ='SINIF LİSTESİ'!B15 -> MEDİHA
A16: ='SINIF LİSTESİ'!A16 -> 420 | B16: ='SINIF LİSTESİ'!B16 -> BERTAN
A17: ='SINIF LİSTESİ'!A17 -> 430 | B17: ='SINIF LİSTESİ'!B17 -> CİHANNUR
A18: ='SINIF LİSTESİ'!A18 -> 459 | B18: ='SINIF LİSTESİ'!B18 -> AZİZ
A19: ='SINIF LİSTESİ'!A19 -> 462 | B19: ='SINIF LİSTESİ'!B19 -> HÜMEYSANUR
A20: ='SINIF LİSTESİ'!A20 -> 517 | B20: ='SINIF LİSTESİ'!B20 -> HAYRUNNİSA
A21: ='SINIF LİSTESİ'!A21 -> 542 | B21: ='SINIF LİSTESİ'!B21 -> NİMETULLAH
A22: ='SINIF LİSTESİ'!A22 -> 544 | B22: ='SINIF LİSTESİ'!B22 -> AYCAN
A23: ='SINIF LİSTESİ'!A23 -> 558 | B23: ='SINIF LİSTESİ'!B23 -> ELİF
A24: ='SINIF LİSTESİ'!A24 -> 585 | B24: ='SINIF LİSTESİ'!B24 -> AHMET
A25: ='SINIF LİSTESİ'!A25 -> 604 | B25: ='SINIF LİSTESİ'!B25 -> AZAM
A26: ='SINIF LİSTESİ'!A26 -> 644 | B26: ='SINIF LİSTESİ'!B26 -> DEMETNUR
A27: ='SINIF LİSTESİ'!A27 -> 696 | B27: ='SINIF LİSTESİ'!B27 -> ELİF
A28: ='SINIF LİSTESİ'!A28 -> 716 | B28: ='SINIF LİSTESİ'!B28 -> ERKAN
A29: ='SINIF LİSTESİ'!A29 -> 933 | B29: ='SINIF LİSTESİ'!B29 -> NİSA
A30: ='SINIF LİSTESİ'!A30 -> 5000 | B30: ='SINIF LİSTESİ'!B30 -> ASUDE

Sheet DENEME SINAVI
B1: not: | C1: Öğrencinin aldığı puanı aynen yazın
A2: ='SINIF LİSTESİ'!A2 -> NO | B2: ='SINIF LİSTESİ'!B2 -> ADI SOYADI | C2: DENM.1 | D2: DENM.2 | E2: DENM.3 | F2: DENM.4 | G2: DENM.5 | H2: DENM.6 | I2: DENM.7 | J2: DENM.8 | K2: DENM.9 | L2: DENM.10 | M2: DENM.11 | N2: DENM.12 | O2: DENM.13 | P2: DENM.14 | Q2: DENM.15 | R2: ORTALAMA
A3: ='SINIF LİSTESİ'!A3 -> 91 | B3: ='SINIF LİSTESİ'!B3 -> ENES | C3: 430 | D3: 400 | E3: 416 | R3: =IF(C3<>"",AVERAGE(C3:Q3)/5,"") -> 83.06666667
A4: ='SINIF LİSTESİ'!A4 -> 126 | B4: ='SINIF LİSTESİ'!B4 -> BİLAL | C4: 380 | D4: 390 | E4: 400 | R4: =IF(C4<>"",AVERAGE(C4:Q4)/5,"") -> 78
A5: ='SINIF LİSTESİ'!A5 -> 169 | B5: ='SINIF LİSTESİ'!B5 -> YASİN | C5: 378 | D5: 400 | E5: 425 | R5: 80.2
A6: ='SINIF LİSTESİ'!A6 -> 170 | B6: ='SINIF LİSTESİ'!B6 -> YİĞİT | C6: 0 | D6: 0 | E6: 0 | R6: 0
A7: ='SINIF LİSTESİ'!A7 -> 206 | B7: ='SINIF LİSTESİ'!B7 -> DİLAN | C7: 68 | R7: 13.6
A8: ='SINIF LİSTESİ'!A8 -> 219 | B8: ='SINIF LİSTESİ'!B8 -> AHSEN | C8: 400 | R8: 80
A9: ='SINIF LİSTESİ'!A9 -> 234 | B9: ='SINIF LİSTESİ'!B9 -> NEHİR | C9: 500 | R9: 100
A10: ='SINIF LİSTESİ'!A10 -> 317 | B10: ='SINIF LİSTESİ'!B10 -> MERYEM | C10: 500 | R10: 100
A11: ='SINIF LİSTESİ'!A11 -> 319 | B11: ='SINIF LİSTESİ'!B11 -> NEHİR | C11: 400 | R11: 80
A12: ='SINIF LİSTESİ'!A12 -> 331 | B12: ='SINIF LİSTESİ'!B12 -> YUNUS
A13: ='SINIF LİSTESİ'!A13 -> 359 | B13: ='SINIF LİSTESİ'!B13 -> ELİF
A14: ='SINIF LİSTESİ'!A14 -> 383 | B14: ='SINIF LİSTESİ'!B14 -> FURKAN
A15: ='SINIF LİSTESİ'!A15 -> 386 | B15: ='SINIF LİSTESİ'!B15 -> MEDİHA
A16: ='SINIF LİSTESİ'!A16 -> 420 | B16: ='SINIF LİSTESİ'!B16 -> BERTAN
A17: ='SINIF LİSTESİ'!A17 -> 430 | B17: ='SINIF LİSTESİ'!B17 -> CİHANNUR
A18: ='SINIF LİSTESİ'!A18 -> 459 | B18: ='SINIF LİSTESİ'!B18 -> AZİZ
A19: ='SINIF LİSTESİ'!A19 -> 462 | B19: ='SINIF LİSTESİ'!B19 -> HÜMEYSANUR
A20: ='SINIF LİSTESİ'!A20 -> 517 | B20: ='SINIF LİSTESİ'!B20 -> HAYRUNNİSA
A21: ='SINIF LİSTESİ'!A21 -> 542 | B21: ='SINIF LİSTESİ'!B21 -> NİMETULLAH
A22: ='SINIF LİSTESİ'!A22 -> 544 | B22: ='SINIF LİSTESİ'!B22 -> AYCAN
A23: ='SINIF LİSTESİ'!A23 -> 558 | B23: ='SINIF LİSTESİ'!B23 -> ELİF
A24: ='SINIF LİSTESİ'!A24 -> 585 | B24: ='SINIF LİSTESİ'!B24 -> AHMET
A25: ='SINIF LİSTESİ'!A25 -> 604 | B25: ='SINIF LİSTESİ'!B25 -> AZAM
A26: ='SINIF LİSTESİ'!A26 -> 644 | B26: ='SINIF LİSTESİ'!B26 -> DEMETNUR
A27: ='SINIF LİSTESİ'!A27 -> 696 | B27: ='SINIF LİSTESİ'!B27 -> ELİF
A28: ='SINIF LİSTESİ'!A28 -> 716 | B28: ='SINIF LİSTESİ'!B28 -> ERKAN
A29: ='SINIF LİSTESİ'!A29 -> 933 | B29: ='SINIF LİSTESİ'!B29 -> NİSA
A30: ='SINIF LİSTESİ'!A30 -> 5000 | B30: ='SINIF LİSTESİ'!B30 -> ASUDE

Sheet ÖDEV
B1: Not: | C1: Öğrenciyi, ödevin tam yapılıp yapılmadığına göre 0,1,2,3 notlarından biriyle değerlendirin.
A2: ='SINIF LİSTESİ'!A2 -> NO | B2: ='SINIF LİSTESİ'!B2 -> ADI SOYADI | C2: Ö1 | D2: Ö2 | E2: Ö3 | F2: Ö4 | G2: Ö5 | H2: Ö6 | I2: Ö7 | J2: Ö8 | K2: Ö9 | L2: Ö10 | M2: Ö11 | N2: Ö12 | O2: Ö13 | P2: Ö14 | Q2: Ö15
A3: ='SINIF LİSTESİ'!A3 -> 91 | B3: ='SINIF LİSTESİ'!B3 -> ENES | R3: =IF(C3<>"",AVERAGE(C3:Q3),"") ->  | X3: =IF(Y3<>"",AVERAGE(Y3:AM3),"") ->  | Y3: =IF(C3<>"",C3*20,"") ->  | Z3: =IF(D3<>"",D3*20,"") -> 
A4: ='SINIF LİSTESİ'!A4 -> 126 | B4: ='SINIF LİSTESİ'!B4 -> BİLAL | C4: 1 | D4: 2 | E4: 2 | F4: 1 | G4: 3 | H4: 3 | I4: 2 | J4: 1 | K4: 2 | L4: 2 | M4: 1 | N4: 3 | O4: 3 | P4: 2 | Q4: 3 | R4: =IF(C4<>"",AVERAGE(C4:Q4),"") -> 2.066666667 | X4: =IF(Y4<>"",AVERAGE(Y4:AM4),"") -> 41.33333333 | Y4: =IF(C4<>"",C4*20,"") -> 20 | Z4: =IF(D4<>"",D4*20,"") -> 40 | AA4: =IF(E4<>"",E4*20,"") -> 40 | AB4: =IF(F4<>"",F4*20,"") -> 20 | AC4: =IF(G4<>"",G4*20,"") -> 60 | AD4: =IF(H4<>"",H4*20,"") -> 60 | AE4: =IF(I4<>"",I4*20,"") -> 40 | AF4: =IF(J4<>"",J4*20,"") -> 20 | AG4: =IF(K4<>"",K4*20,"") -> 40 | AH4: =IF(L4<>"",L4*20,"") -> 40 | AI4: =IF(M4<>"",M4*20,"") -> 20 | AJ4: =IF(N4<>"",N4*20,"") -> 60 | AK4: =IF(O4<>"",O4*20,"") -> 60 | AL4: =IF(P4<>"",P4*20,"") -> 40 | AM4: =IF(Q4<>"",Q4*20,"") -> 60
A5: ='SINIF LİSTESİ'!A5 -> 169 | B5: ='SINIF LİSTESİ'!B5 -> YASİN | C5: 1 | D5: 1 | E5: 1 | F5: 1 | G5: 1 | H5: 1 | I5: 1 | J5: 1 | K5: 1 | L5: 1 | M5: 1 | N5: 1 | O5: 1 | P5: 1 | Q5: 1 | R5: =IF(C5<>"",AVERAGE(C5:Q5),"") -> 1 | X5: 20 | Y5: 20 | Z5: 20 | AA5: 20 | AB5: 20 | AC5: 20 | AD5: 20 | AE5: 20 | AF5: 20 | AG5: 20 | AH5: 20 | AI5: 20 | AJ5: 20 | AK5: 20 | AL5: 20 | AM5: 20
A6: ='SINIF LİSTESİ'!A6 -> 170 | B6: ='SINIF LİSTESİ'!B6 -> YİĞİT | C6: 3 | D6: 3 | E6: 3 | F6: 3 | G6: 3 | H6: 3 | I6: 3 | J6: 3 | K6: 3 | L6: 3 | M6: 3 | N6: 3 | O6: 3 | P6: 3 | Q6: 3 | R6: 3 | X6: 60 | Y6: 60 | Z6: 60 | AA6: 60 | AB6: 60 | AC6: 60 | AD6: 60 | AE6: 60 | AF6: 60 | AG6: 60 | AH6: 60 | AI6: 60 | AJ6: 60 | AK6: 60 | AL6: 60 | AM6: 60
A7: ='SINIF LİSTESİ'!A7 -> 206 | B7: ='SINIF LİSTESİ'!B7 -> DİLAN
A8: ='SINIF LİSTESİ'!A8 -> 219 | B8: ='SINIF LİSTESİ'!B8 -> AHSEN
A9: ='SINIF LİSTESİ'!A9 -> 234 | B9: ='SINIF LİSTESİ'!B9 -> NEHİR
A10: ='SINIF LİSTESİ'!A10 -> 317 | B10: ='SINIF LİSTESİ'!B10 -> MERYEM
A11: ='SINIF LİSTESİ'!A11 -> 319 | B11: ='SINIF LİSTESİ'!B11 -> NEHİR
A12: ='SINIF LİSTESİ'!A12 -> 331 | B12: ='SINIF LİSTESİ'!B12 -> YUNUS
A13: ='SINIF LİSTESİ'!A13 -> 359 | B13: ='SINIF LİSTESİ'!B13 -> ELİF
A14: ='SINIF LİSTESİ'!A14 -> 383 | B14: ='SINIF LİSTESİ'!B14 -> FURKAN
A15: ='SINIF LİSTESİ'!A15 -> 386 | B15: ='SINIF LİSTESİ'!B15 -> MEDİHA
A16: ='SINIF LİSTESİ'!A16 -> 420 | B16: ='SINIF LİSTESİ'!B16 -> BERTAN
A17: ='SINIF LİSTESİ'!A17 -> 430 | B17: ='SINIF LİSTESİ'!B17 -> CİHANNUR
A18: ='SINIF LİSTESİ'!A18 -> 459 | B18: ='SINIF LİSTESİ'!B18 -> AZİZ
A19: ='SINIF LİSTESİ'!A19 -> 462 | B19: ='SINIF LİSTESİ'!B19 -> HÜMEYSANUR
A20: ='SINIF LİSTESİ'!A20 -> 517 | B20: ='SINIF LİSTESİ'!B20 -> HAYRUNNİSA
A21: ='SINIF LİSTESİ'!A21 -> 542 | B21: ='SINIF LİSTESİ'!B21 -> NİMETULLAH
A22: ='SINIF LİSTESİ'!A22 -> 544 | B22: ='SINIF LİSTESİ'!B22 -> AYCAN
A23: ='SINIF LİSTESİ'!A23 -> 558 | B23: ='SINIF LİSTESİ'!B23 -> ELİF
A24: ='SINIF LİSTESİ'!A24 -> 585 | B24: ='SINIF LİSTESİ'!B24 -> AHMET
A25: ='SINIF LİSTESİ'!A25 -> 604 | B25: ='SINIF LİSTESİ'!B25 -> AZAM
A26: ='SINIF LİSTESİ'!A26 -> 644 | B26: ='SINIF LİSTESİ'!B26 -> DEMETNUR
A27: ='SINIF LİSTESİ'!A27 -> 696 | B27: ='SINIF LİSTESİ'!B27 -> ELİF
A28: ='SINIF LİSTESİ'!A28 -> 716 | B28: ='SINIF LİSTESİ'!B28 -> ERKAN
A29: ='SINIF LİSTESİ'!A29 -> 933 | B29: ='SINIF LİSTESİ'!B29 -> NİSA
A30: ='SINIF LİSTESİ'!A30 -> 5000 | B30: ='SINIF LİSTESİ'!B30 -> ASUDE

Sheet DERSE KATILIM
B1: Not: | C1: İki üç haftada bir 0,1,2,3 notlarından biriyle değerlendirin
A2: ='SINIF LİSTESİ'!A2 -> NO | B2: ='SINIF LİSTESİ'!B2 -> ADI SOYADI | C2: DK1 | D2: DK2 | E2: DK3 | F2: DK4 | G2: DK5 | H2: DK6 | I2: DK7 | J2: DK8 | K2: DK9 | L2: DK10 | M2: DK11 | N2: DK12 | O2: DK13 | P2: DK14 | Q2: DK15
A3: ='SINIF LİSTESİ'!A3 -> 91 | B3: ='SINIF LİSTESİ'!B3 -> ENES | C3: 0 | D3: 1 | E3: 0 | F3: 1 | G3: 1 | H3: 2 | I3: 2 | J3: 1 | K3: 3 | L3: 3 | M3: 3 | N3: 3 | O3: 2 | P3: 3 | Q3: 3 | R3: =IF(C3<>"",AVERAGE(C3:Q3),"") -> 1.866666667 | T3: =IF(U3<>"",AVERAGE(U3:AI3),"") -> 37.33333333 | U3: =IF(C3<>"",C3*20,"") -> 0 | V3: =IF(D3<>"",D3*20,"") -> 20 | W3: 0 | X3: 20 | Y3: 20 | Z3: 40 | AA3: 40 | AB3: 20 | AC3: 60 | AD3: 60 | AE3: 60 | AF3: 60 | AG3: 40 | AH3: 60 | AI3: 60
A4: ='SINIF LİSTESİ'!A4 -> 126 | B4: ='SINIF LİSTESİ'!B4 -> BİLAL | C4: 3 | D4: 3 | E4: 3 | F4: 2 | G4: 2 | H4: 2 | I4: 2 | J4: 3 | K4: 3 | L4: 3 | M4: 3 | N4: 0 | O4: 0 | P4: 1 | Q4: 1 | R4: =IF(C4<>"",AVERAGE(C4:Q4),"") -> 2.066666667 | T4: =IF(U4<>"",AVERAGE(U4:AI4),"") -> 41.33333333 | U4: =IF(C4<>"",C4*20,"") -> 60 | V4: =IF(D4<>"",D4*20,"") -> 60 | W4: =IF(E4<>"",E4*20,"") -> 60 | X4: =IF(F4<>"",F4*20,"") -> 40 | Y4: =IF(G4<>"",G4*20,"") -> 40 | Z4: =IF(H4<>"",H4*20,"") -> 40 | AA4: =IF(I4<>"",I4*20,"") -> 40 | AB4: =IF(J4<>"",J4*20,"") -> 60 | AC4: =IF(K4<>"",K4*20,"") -> 60 | AD4: =IF(L4<>"",L4*20,"") -> 60 | AE4: =IF(M4<>"",M4*20,"") -> 60 | AF4: =IF(N4<>"",N4*20,"") -> 0 | AG4: =IF(O4<>"",O4*20,"") -> 0 | AH4: =IF(P4<>"",P4*20,"") -> 20 | AI4: =IF(Q4<>"",Q4*20,"") -> 20
A5: ='SINIF LİSTESİ'!A5 -> 169 | B5: ='SINIF LİSTESİ'!B5 -> YASİN | C5: 2 | D5: 1 | E5: 2 | F5: 2 | G5: 2 | H5: 2 | I5: 2 | J5: 2 | K5: 2 | L5: 1 | M5: 1 | N5: 1 | O5: 2 | P5: 2 | Q5: 2 | R5: 1.733333333 | T5: 34.66666667 | U5: 40 | V5: 20 | W5: 40 | X5: 40 | Y5: 40 | Z5: 40 | AA5: 40 | AB5: 40 | AC5: 40 | AD5: 20 | AE5: 20 | AF5: 20 | AG5: 40 | AH5: 40 | AI5: 40
A6: ='SINIF LİSTESİ'!A6 -> 170 | B6: ='SINIF LİSTESİ'!B6 -> YİĞİT | C6: 3 | D6: 3 | E6: 3 | F6: 3 | G6: 3 | H6: 3 | I6: 3 | J6: 2 | K6: 2 | L6: 3 | M6: 3 | N6: 3 | O6: 3 | P6: 3 | Q6: 3 | R6: 2.866666667 | T6: 57.33333333 | U6: 60 | V6: 60 | W6: 60 | X6: 60 | Y6: 60 | Z6: 60 | AA6: 60 | AB6: 40 | AC6: 40 | AD6: 60 | AE6: 60 | AF6: 60 | AG6: 60 | AH6: 60 | AI6: 60
A7: ='SINIF LİSTESİ'!A7 -> 206 | B7: ='SINIF LİSTESİ'!B7 -> DİLAN | C7: 3 | R7: 3 | T7: 60 | U7: 60
A8: ='SINIF LİSTESİ'!A8 -> 219 | B8: ='SINIF LİSTESİ'!B8 -> AHSEN | C8: 3 | R8: 3 | T8: 60 | U8: 60
A9: ='SINIF LİSTESİ'!A9 -> 234 | B9: ='SINIF LİSTESİ'!B9 -> NEHİR | C9: 2 | R9: 2 | T9: 40 | U9: 40
A10: ='SINIF LİSTESİ'!A10 -> 317 | B10: ='SINIF LİSTESİ'!B10 -> MERYEM | C10: 1 | R10: 1 | T10: 20 | U10: 20
A11: ='SINIF LİSTESİ'!A11 -> 319 | B11: ='SINIF LİSTESİ'!B11 -> NEHİR | C11: 3 | D11: 2 | R11: 2.5 | T11: =IF(U11<>"",AVERAGE(U11:AI11),"") -> 50 | U11: 60 | V11: 40
A12: ='SINIF LİSTESİ'!A12 -> 331 | B12: ='SINIF LİSTESİ'!B12 -> YUNUS
A13: ='SINIF LİSTESİ'!A13 -> 359 | B13: ='SINIF LİSTESİ'!B13 -> ELİF
A14: ='SINIF LİSTESİ'!A14 -> 383 | B14: ='SINIF LİSTESİ'!B14 -> FURKAN
A15: ='SINIF LİSTESİ'!A15 -> 386 | B15: ='SINIF LİSTESİ'!B15 -> MEDİHA
A16: ='SINIF LİSTESİ'!A16 -> 420 | B16: ='SINIF LİSTESİ'!B16 -> BERTAN
A17: ='SINIF LİSTESİ'!A17 -> 430 | B17: ='SINIF LİSTESİ'!B17 -> CİHANNUR
A18: ='SINIF LİSTESİ'!A18 -> 459 | B18: ='SINIF LİSTESİ'!B18 -> AZİZ
A19: ='SINIF LİSTESİ'!A19 -> 462 | B19: ='SINIF LİSTESİ'!B19 -> HÜMEYSANUR
A20: ='SINIF LİSTESİ'!A20 -> 517 | B20: ='SINIF LİSTESİ'!B20 -> HAYRUNNİSA
A21: ='SINIF LİSTESİ'!A21 -> 542 | B21: ='SINIF LİSTESİ'!B21 -> NİMETULLAH
A22: ='SINIF LİSTESİ'!A22 -> 544 | B22: ='SINIF LİSTESİ'!B22 -> AYCAN
A23: ='SINIF LİSTESİ'!A23 -> 558 | B23: ='SINIF LİSTESİ'!B23 -> ELİF
A24: ='SINIF LİSTESİ'!A24 -> 585 | B24: ='SINIF LİSTESİ'!B24 -> AHMET
A25: ='SINIF LİSTESİ'!A25 -> 604 | B25: ='SINIF LİSTESİ'!B25 -> AZAM
A26: ='SINIF LİSTESİ'!A26 -> 644 | B26: ='SINIF LİSTESİ'!B26 -> DEMETNUR
A27: ='SINIF LİSTESİ'!A27 -> 696 | B27: ='SINIF LİSTESİ'!B27 -> ELİF
A28: ='SINIF LİSTESİ'!A28 -> 716 | B28: ='SINIF LİSTESİ'!B28 -> ERKAN
A29: ='SINIF LİSTESİ'!A29 -> 933 | B29: ='SINIF LİSTESİ'!B29 -> NİSA
A30: ='SINIF LİSTESİ'!A30 -> 5000 | B30: ='SINIF LİSTESİ'!B30 -> ASUDE

Sheet DAVRANIŞ
B1: Not: | C1: İki üç haftada bir 0,1,2,3 notlarından biriyle değerlendirin
A2: ='SINIF LİSTESİ'!A2 -> NO | B2: ='SINIF LİSTESİ'!B2 -> ADI SOYADI | C2: D1 | D2: D2 | E2: D3 | F2: D4 | G2: D5 | H2: D6 | I2: D7 | J2: D8 | K2: D9 | L2: D10 | M2: D11 | N2: D12 | O2: D13 | P2: D14 | Q2: D15
A3: ='SINIF LİSTESİ'!A3 -> 91 | B3: ='SINIF LİSTESİ'!B3 -> ENES | C3: 3 | D3: 2 | E3: 3 | F3: 2 | G3: 2 | H3: 3 | Q3: 3 | R3: =IF(C3<>"",AVERAGE(C3:Q3),"") -> 2.571428571 | S3: =IF(T3<>"",AVERAGE(T3:AH3),"") -> 41.63265306 | T3: =IF(C3<>"",D3*20,"") -> 40 | U3: =IF(D3<>"",E3*20,"") -> 60 | V3: 40 | W3: 40 | X3: 60 | Y3: 0 | AH3: 51.42857143
A4: ='SINIF LİSTESİ'!A4 -> 126 | B4: ='SINIF LİSTESİ'!B4 -> BİLAL | C4: 1 | D4: 1 | E4: 2 | F4: 2 | G4: 1 | H4: 3 | R4: =IF(C4<>"",AVERAGE(C4:Q4),"") -> 1.666666667 | S4: =IF(T4<>"",AVERAGE(T4:AH4),"") -> 30 | T4: =IF(C4<>"",D4*20,"") -> 20 | U4: =IF(D4<>"",E4*20,"") -> 40 | V4: =IF(E4<>"",F4*20,"") -> 40 | W4: =IF(F4<>"",G4*20,"") -> 20 | X4: =IF(G4<>"",H4*20,"") -> 60 | Y4: =IF(H4<>"",I4*20,"") -> 0 | Z4: =IF(I4<>"",J4*20,"") ->  | AA4: =IF(J4<>"",K4*20,"") ->  | AB4: =IF(K4<>"",L4*20,"") ->  | AC4: =IF(L4<>"",M4*20,"") ->  | AD4: =IF(M4<>"",N4*20,"") ->  | AE4: =IF(N4<>"",O4*20,"") ->  | AF4: =IF(O4<>"",P4*20,"") ->  | AG4: =IF(P4<>"",Q4*20,"") ->  | AH4: =IF(Q4<>"",R4*20,"") -> 
A5: ='SINIF LİSTESİ'!A5 -> 169 | B5: ='SINIF LİSTESİ'!B5 -> YASİN | C5: 3 | D5: 2 | E5: 2 | F5: 3 | G5: 2 | H5: 2 | R5: 2.333333333 | S5: 36.66666667 | T5: 40 | U5: 40 | V5: 60 | W5: 40 | X5: 40 | Y5: 0
A6: ='SINIF LİSTESİ'!A6 -> 170 | B6: ='SINIF LİSTESİ'!B6 -> YİĞİT | C6: 2 | D6: 3 | E6: 3 | F6: 2 | G6: 3 | H6: 3 | R6: 2.666666667 | S6: 46.66666667 | T6: 60 | U6: 60 | V6: 40 | W6: 60 | X6: 60 | Y6: 0
A7: ='SINIF LİSTESİ'!A7 -> 206 | B7: ='SINIF LİSTESİ'!B7 -> DİLAN | C7: 3 | R7: 3 | S7: 0 | T7: 0
A8: ='SINIF LİSTESİ'!A8 -> 219 | B8: ='SINIF LİSTESİ'!B8 -> AHSEN | C8: 2 | R8: 2 | S8: 0 | T8: 0
A9: ='SINIF LİSTESİ'!A9 -> 234 | B9: ='SINIF LİSTESİ'!B9 -> NEHİR | C9: 2 | R9: 2 | S9: 0 | T9: 0
A10: ='SINIF LİSTESİ'!A10 -> 317 | B10: ='SINIF LİSTESİ'!B10 -> MERYEM | C10: 1 | R10: 1 | S10: 0 | T10: 0
A11: ='SINIF LİSTESİ'!A11 -> 319 | B11: ='SINIF LİSTESİ'!B11 -> NEHİR | C11: 1 | R11: 1 | S11: 0 | T11: 0
A12: ='SINIF LİSTESİ'!A12 -> 331 | B12: ='SINIF LİSTESİ'!B12 -> YUNUS
A13: ='SINIF LİSTESİ'!A13 -> 359 | B13: ='SINIF LİSTESİ'!B13 -> ELİF
A14: ='SINIF LİSTESİ'!A14 -> 383 | B14: ='SINIF LİSTESİ'!B14 -> FURKAN
A15: ='SINIF LİSTESİ'!A15 -> 386 | B15: ='SINIF LİSTESİ'!B15 -> MEDİHA
A16: ='SINIF LİSTESİ'!A16 -> 420 | B16: ='SINIF LİSTESİ'!B16 -> BERTAN
A17: ='SINIF LİSTESİ'!A17 -> 430 | B17: ='SINIF LİSTESİ'!B17 -> CİHANNUR
A18: ='SINIF LİSTESİ'!A18 -> 459 | B18: ='SINIF LİSTESİ'!B18 -> AZİZ
A19: ='SINIF LİSTESİ'!A19 -> 462 | B19: ='SINIF LİSTESİ'!B19 -> HÜMEYSANUR
A20: ='SINIF LİSTESİ'!A20 -> 517 | B20: ='SINIF LİSTESİ'!B20 -> HAYRUNNİSA
A21: ='SINIF LİSTESİ'!A21 -> 542 | B21: ='SINIF LİSTESİ'!B21 -> NİMETULLAH
A22: ='SINIF LİSTESİ'!A22 -> 544 | B22: ='SINIF LİSTESİ'!B22 -> AYCAN
A23: ='SINIF LİSTESİ'!A23 -> 558 | B23: ='SINIF LİSTESİ'!B23 -> ELİF
A24: ='SINIF LİSTESİ'!A24 -> 585 | B24: ='SINIF LİSTESİ'!B24 -> AHMET
A25: ='SINIF LİSTESİ'!A25 -> 604 | B25: ='SINIF LİSTESİ'!B25 -> AZAM
A26: ='SINIF LİSTESİ'!A26 -> 644 | B26: ='SINIF LİSTESİ'!B26 -> DEMETNUR
A27: ='SINIF LİSTESİ'!A27 -> 696 | B27: ='SINIF LİSTESİ'!B27 -> ELİF
A28: ='SINIF LİSTESİ'!A28 -> 716 | B28: ='SINIF LİSTESİ'!B28 -> ERKAN
A29: ='SINIF LİSTESİ'!A29 -> 933 | B29: ='SINIF LİSTESİ'!B29 -> NİSA
A30: ='SINIF LİSTESİ'!A30 -> 5000 | B30: ='SINIF LİSTESİ'!B30 -> ASUDE

Sheet ÖĞRENCİ GELİŞİMİ
AA1: 1
E2: ÖĞRENCİ ADI SOYADI | F2: ENES KARACAOĞLU
U4: ORTALAMA
E5: YAZILI SONUÇLARI | F5: 30 | G5: 56 | H5: 100 | I5: 100 | J5: 100 | K5: 100 | U5: =IF(F5<>"",AVERAGE(F5:T5),"") -> 81
E6: TEST SONUÇLARI | F6: 40 | G6: 50 | H6: 60 | I6: 70 | J6: 55 | K6: 40 | L6: 25 | M6: 10 | N6: 30 | O6: 50 | P6: 70 | Q6: 90 | R6: 100 | S6: 70 | T6: 60 | U6: =IF(F6<>"",AVERAGE(F6:T6),"") -> 54.66666667
E7: DENEME SINAVI S. | F7: 430 | G7: 400 | H7: 416 | U7: =IF(F7<>"",AVERAGE(F7:T7),"") -> 415.3333333
E8: ÖDEV TAKİBİ
E9: DERSE KATILIM | F9: 0 | G9: 1 | H9: 0 | I9: 1 | J9: 1 | K9: 2 | L9: 2 | M9: 1 | N9: 3 | O9: 3 | P9: 3 | Q9: 3 | R9: 2 | S9: 3 | T9: 3 | U9: =IF(F9<>"",AVERAGE(F9:T9),"") -> 1.866666667
E10: DAVRANIŞ | F10: 3 | G10: 2 | H10: 3 | I10: 2 | J10: 2 | K10: 3 | T10: 3 | U10: 2.571428571
E14: EN BAŞARILI | F14: =Sayfa1!J3 -> 0
E15: EN BAŞARISIZ | F15: =Sayfa1!J4 -> 0

Sheet Sayfa1
C1: 100 | D1: 500 | E1: 100 | F1: 3 | G1: 3 | H1: 3 | I1: 9 | O1: 15
A2: NO | B2: ADI SOYADI | C2: NOT | D2: DENEME | E2: TEST | F2: ÖDEV | G2: DESE K. | H2: DAVRANIŞ | I2: BAŞARI İNDEKSİ | M2: MAX | N2: =MAX(I3:I30) ->  | P2: sıralama
A3: ='SINIF LİSTESİ'!A3 -> 91 | B3: ='SINIF LİSTESİ'!B3 -> ENES | C3: =NOT!#REF! ->  | D3: ='DENEME SINAVI'!R3 -> 83.06666667 | E3: =TEST!R3 -> 54.66666667 | F3: =ÖDEV!X3 ->  | G3: ='DERSE KATILIM'!T3 -> 37.33333333 | H3: =DAVRANIŞ!S3 -> 41.63265306 | I3: =IF(C3<>"",SUM(C3:H3),IF(D3<>"",SUM(C3:H3),IF(E3<>"",SUM(C3:H3),IF(F3<>"",SUM(C3:H3),"")))) ->  | J3: 0 | K3: (En başarılı) | M3: MİN | N3: =MIN(I3:I30) ->  | Q3: 0
A4: ='SINIF LİSTESİ'!A4 -> 126 | B4: ='SINIF LİSTESİ'!B4 -> BİLAL | C4: =NOT!#REF! ->  | D4: ='DENEME SINAVI'!R4 -> 78 | E4: =TEST!R4 -> 50 | F4: =ÖDEV!X4 -> 41.33333333 | G4: ='DERSE KATILIM'!T4 -> 41.33333333 | H4: =DAVRANIŞ!S4 -> 30 | I4: =IF(C4<>"",SUM(C4:H4),IF(D4<>"",SUM(C4:H4),IF(E4<>"",SUM(C4:H4),IF(F4<>"",SUM(C4:H4),"")))) ->  | J4: 0 | K4: (En başarısız) | P4: 318.6666667 | Q4: MERT ATAKAN
A5: ='SINIF LİSTESİ'!A5 -> 169 | B5: ='SINIF LİSTESİ'!B5 -> YASİN | C5: =NOT!#REF! ->  | D5: ='DENEME SINAVI'!R5 -> 80.2 | E5: =TEST!R5 -> 76.8 | F5: =ÖDEV!X5 -> 20 | G5: ='DERSE KATILIM'!T5 -> 34.66666667 | H5: =DAVRANIŞ!S5 -> 36.66666667 | P5: 312.3333333 | Q5: MEHMET SAN
A6: ='SINIF LİSTESİ'!A6 -> 170 | B6: ='SINIF LİSTESİ'!B6 -> YİĞİT | C6: =NOT!#REF! ->  | D6: ='DENEME SINAVI'!R6 -> 0 | E6: =TEST!R6 -> 0 | F6: =ÖDEV!X6 -> 60 | G6: ='DERSE KATILIM'!T6 -> 57.33333333 | H6: =DAVRANIŞ!S6 -> 46.66666667 | P6: 293.6666667 | Q6: SADİ DİYE BİRİ
A7: ='SINIF LİSTESİ'!A7 -> 206 | B7: ='SINIF LİSTESİ'!B7 -> DİLAN | C7: =NOT!#REF! ->  | D7: ='DENEME SINAVI'!R7 -> 13.6 | E7: =TEST!R7 -> 5 | F7: =ÖDEV!X7 ->  | G7: ='DERSE KATILIM'!T7 -> 60 | H7: =DAVRANIŞ!S7 -> 0 | P7: 282.8659864 | Q7: ALİ ENDER
A8: ='SINIF LİSTESİ'!A8 -> 219 | B8: ='SINIF LİSTESİ'!B8 -> AHSEN | C8: =NOT!#REF! ->  | D8: ='DENEME SINAVI'!R8 -> 80 | E8: =TEST!R8 -> 40 | F8: =ÖDEV!X8 ->  | G8: ='DERSE KATILIM'!T8 -> 60 | H8: =DAVRANIŞ!S8 -> 0 | P8: 269.5 | Q8: AHMET KURAL
A9: ='SINIF LİSTESİ'!A9 -> 234 | B9: ='SINIF LİSTESİ'!B9 -> NEHİR | C9: =NOT!#REF! ->  | D9: ='DENEME SINAVI'!R9 -> 100 | E9: =TEST!R9 -> 67 | F9: =ÖDEV!X9 ->  | G9: ='DERSE KATILIM'!T9 -> 40 | H9: =DAVRANIŞ!S9 -> 0 | P9: 226.5 | Q9: TARIK EFE
A10: ='SINIF LİSTESİ'!A10 -> 317 | B10: ='SINIF LİSTESİ'!B10 -> MERYEM | C10: =NOT!#REF! ->  | D10: ='DENEME SINAVI'!R10 -> 100 | E10: =TEST!R10 -> 98 | F10: =ÖDEV!X10 ->  | G10: ='DERSE KATILIM'!T10 -> 20 | H10: =DAVRANIŞ!S10 -> 0 | P10: 224.5 | Q10: MURATCEMŞİR
A11: ='SINIF LİSTESİ'!A11 -> 319 | B11: ='SINIF LİSTESİ'!B11 -> NEHİR | C11: =NOT!#REF! ->  | D11: ='DENEME SINAVI'!R11 -> 80 | E11: =TEST!R11 -> 34 | F11: =ÖDEV!X11 ->  | G11: ='DERSE KATILIM'!T11 -> 50 | H11: =DAVRANIŞ!S11 -> 0 | P11: 214 | Q11: SİNEM ÖZSAN
A12: ='SINIF LİSTESİ'!A12 -> 331 | B12: ='SINIF LİSTESİ'!B12 -> YUNUS | C12: =NOT!#REF! ->  | D12: ='DENEME SINAVI'!R12 ->  | E12: =TEST!R12 ->  | F12: =ÖDEV!X12 ->  | G12: ='DERSE KATILIM'!T12 ->  | H12: =DAVRANIŞ!S12 ->  | P12: 168.6 | Q12: MURAT ÇELİK
A13: ='SINIF LİSTESİ'!A13 -> 359 | B13: ='SINIF LİSTESİ'!B13 -> ELİF | C13: =NOT!#REF! ->  | D13: ='DENEME SINAVI'!R13 ->  | E13: =TEST!R13 ->  | F13: =ÖDEV!X13 ->  | G13: ='DERSE KATILIM'!T13 ->  | H13: =DAVRANIŞ!S13 ->  | Q13: 0
A14: ='SINIF LİSTESİ'!A14 -> 383 | B14: ='SINIF LİSTESİ'!B14 -> FURKAN | C14: =NOT!#REF! ->  | D14: ='DENEME SINAVI'!R14 ->  | E14: =TEST!R14 ->  | F14: =ÖDEV!X14 ->  | G14: ='DERSE KATILIM'!T14 ->  | H14: =DAVRANIŞ!S14 ->  | Q14: 0
A15: ='SINIF LİSTESİ'!A15 -> 386 | B15: ='SINIF LİSTESİ'!B15 -> MEDİHA | C15: =NOT!#REF! ->  | D15: ='DENEME SINAVI'!R15 ->  | E15: =TEST!R15 ->  | F15: =ÖDEV!X15 ->  | G15: ='DERSE KATILIM'!T15 ->  | H15: =DAVRANIŞ!S15 ->  | Q15: 0
A16: ='SINIF LİSTESİ'!A16 -> 420 | B16: ='SINIF LİSTESİ'!B16 -> BERTAN | C16: =NOT!#REF! ->  | D16: ='DENEME SINAVI'!R16 ->  | E16: =TEST!R16 ->  | F16: =ÖDEV!X16 ->  | G16: ='DERSE KATILIM'!T16 ->  | H16: =DAVRANIŞ!S16 ->  | Q16: 0
A17: ='SINIF LİSTESİ'!A17 -> 430 | B17: ='SINIF LİSTESİ'!B17 -> CİHANNUR | C17: =NOT!#REF! ->  | D17: ='DENEME SINAVI'!R17 ->  | E17: =TEST!R17 ->  | F17: =ÖDEV!X17 ->  | G17: ='DERSE KATILIM'!T17 ->  | H17: =DAVRANIŞ!S17 ->  | Q17: 0
A18: ='SINIF LİSTESİ'!A18 -> 459 | B18: ='SINIF LİSTESİ'!B18 -> AZİZ | C18: =NOT!#REF! ->  | D18: ='DENEME SINAVI'!R18 ->  | E18: =TEST!R18 ->  | F18: =ÖDEV!X18 ->  | G18: ='DERSE KATILIM'!T18 ->  | H18: =DAVRANIŞ!S18 ->  | Q18: 0
A19: ='SINIF LİSTESİ'!A19 -> 462 | B19: ='SINIF LİSTESİ'!B19 -> HÜMEYSANUR | C19: =NOT!#REF! ->  | D19: ='DENEME SINAVI'!R19 ->  | E19: =TEST!R19 ->  | F19: =ÖDEV!X19 ->  | G19: ='DERSE KATILIM'!T19 ->  | H19: =DAVRANIŞ!S19 ->  | Q19: 0
A20: ='SINIF LİSTESİ'!A20 -> 517 | B20: ='SINIF LİSTESİ'!B20 -> HAYRUNNİSA | C20: =NOT!#REF! ->  | D20: ='DENEME SINAVI'!R20 ->  | E20: =TEST!R20 ->  | F20: =ÖDEV!X20 ->  | G20: ='DERSE KATILIM'!T20 ->  | H20: =DAVRANIŞ!S20 ->  | Q20: 0
A21: ='SINIF LİSTESİ'!A21 -> 542 | B21: ='SINIF LİSTESİ'!B21 -> NİMETULLAH | C21: =NOT!#REF! ->  | D21: ='DENEME SINAVI'!R21 ->  | E21: =TEST!R21 ->  | F21: =ÖDEV!X21 ->  | G21: ='DERSE KATILIM'!T21 ->  | H21: =DAVRANIŞ!S21 ->  | Q21: 0
A22: ='SINIF LİSTESİ'!A22 -> 544 | B22: ='SINIF LİSTESİ'!B22 -> AYCAN | C22: =NOT!#REF! ->  | D22: ='DENEME SINAVI'!R22 ->  | E22: =TEST!R22 ->  | F22: =ÖDEV!X22 ->  | G22: ='DERSE KATILIM'!T22 ->  | H22: =DAVRANIŞ!S22 ->  | Q22: 0
A23: ='SINIF LİSTESİ'!A23 -> 558 | B23: ='SINIF LİSTESİ'!B23 -> ELİF | C23: =NOT!#REF! ->  | D23: ='DENEME SINAVI'!R23 ->  | E23: =TEST!R23 ->  | F23: =ÖDEV!X23 ->  | G23: ='DERSE KATILIM'!T23 ->  | H23: =DAVRANIŞ!S23 ->  | Q23: 0
A24: ='SINIF LİSTESİ'!A24 -> 585 | B24: ='SINIF LİSTESİ'!B24 -> AHMET | C24: =NOT!#REF! ->  | D24: ='DENEME SINAVI'!R24 ->  | E24: =TEST!R24 ->  | F24: =ÖDEV!X24 ->  | G24: ='DERSE KATILIM'!T24 ->  | H24: =DAVRANIŞ!S24 ->  | Q24: 0
A25: ='SINIF LİSTESİ'!A25 -> 604 | B25: ='SINIF LİSTESİ'!B25 -> AZAM | C25: =NOT!#REF! ->  | D25: ='DENEME SINAVI'!R25 ->  | E25: =TEST!R25 ->  | F25: =ÖDEV!X25 ->  | G25: ='DERSE KATILIM'!T25 ->  | H25: =DAVRANIŞ!S25 ->  | Q25: 0
A26: ='SINIF LİSTESİ'!A26 -> 644 | B26: ='SINIF LİSTESİ'!B26 -> DEMETNUR | C26: =NOT!#REF! ->  | D26: ='DENEME SINAVI'!R26 ->  | E26: =TEST!R26 ->  | F26: =ÖDEV!X26 ->  | G26: ='DERSE KATILIM'!T26 ->  | H26: =DAVRANIŞ!S26 ->  | Q26: 0
A27: ='SINIF LİSTESİ'!A27 -> 696 | B27: ='SINIF LİSTESİ'!B27 -> ELİF | C27: =NOT!#REF! ->  | D27: ='DENEME SINAVI'!R27 ->  | E27: =TEST!R27 ->  | F27: =ÖDEV!X27 ->  | G27: ='DERSE KATILIM'!T27 ->  | H27: =DAVRANIŞ!S27 ->  | Q27: 0
A28: ='SINIF LİSTESİ'!A28 -> 716 | B28: ='SINIF LİSTESİ'!B28 -> ERKAN | C28: =NOT!#REF! ->  | D28: ='DENEME SINAVI'!R28 ->  | E28: =TEST!R28 ->  | F28: =ÖDEV!X28 ->  | G28: ='DERSE KATILIM'!T28 ->  | H28: =DAVRANIŞ!S28 ->  | Q28: 0
A29: ='SINIF LİSTESİ'!A29 -> 933 | B29: ='SINIF LİSTESİ'!B29 -> NİSA | C29: =NOT!#REF! ->  | D29: ='DENEME SINAVI'!R29 ->  | E29: =TEST!R29 ->  | F29: =ÖDEV!X29 ->  | G29: ='DERSE KATILIM'!T29 ->  | H29: =DAVRANIŞ!S29 ->  | Q29: 0
A30: ='SINIF LİSTESİ'!A30 -> 5000 | B30: ='SINIF LİSTESİ'!B30 -> ASUDE | C30: =NOT!#REF! ->  | D30: ='DENEME SINAVI'!R30 ->  | E30: =TEST!R30 ->  | F30: =ÖDEV!X30 ->  | G30: ='DERSE KATILIM'!T30 ->  | H30: =DAVRANIŞ!S30 ->  | Q30: 0
P59: 584.2
P60: 519.7333333
P61: 664.4
P62: 9.533333333
P63: 74
P87: 584.2
P88: 519.7333333
P89: 664.4
P90: 9.533333333
P91: 74
P115: 584.2
P116: 519.7333333
P117: 664.4
P118: 9.533333333
P119: 74
P143: 584.2
P144: 519.7333333
P145: 664.4
P146: 9.533333333
P147: 74
P171: 584.2
P172: 519.7333333
P173: 664.4
P174: 9.533333333
P175: 74
P199: 584.2
P200: 519.7333333
P201: 664.4
P202: 9.533333333
P203: 74
P227: 584.2
P228: 519.7333333
P229: 664.4
P230: 9.533333333
P231: 74
P255: 584.2
P256: 519.7333333
P257: 664.4
P258: 9.533333333
P259: 74
P283: 584.2
P284: 519.7333333
P285: 664.4
P286: 9.533333333
P287: 74
P311: 584.2
P312: 519.7333333
P313: 664.4
P314: 9.533333333
P315: 74
P339: 584.2
P340: 519.7333333
P341: 664.4
P342: 9.533333333
P343: 74
P367: 584.2
P368: 519.7333333
P369: 664.4
P370: 9.533333333
P371: 74
P395: 584.2
P396: 519.7333333
P397: 664.4
P398: 9.533333333
P399: 74
P423: 584.2
P424: 519.7333333
P425: 664.4
P426: 9.533333333
P427: 74
P451: 584.2
P452: 519.7333333
P453: 664.4
P454: 9.533333333
P455: 74
P479: 584.2
P480: 519.7333333
P481: 664.4
P482: 9.533333333
P483: 74
P507: 584.2
P508: 519.7333333
P509: 664.4
P510: 9.533333333
P511: 74
P535: 584.2
P536: 519.7333333
P537: 664.4
P538: 9.533333333
P539: 74
P563: 584.2
P564: 519.7333333
P565: 664.4
P566: 9.533333333
P567: 74
P591: 584.2
P592: 519.7333333
P593: 664.4
P594: 9.533333333
P595: 74
P619: 584.2
P620: 519.7333333
P621: 664.4
P622: 9.533333333
P623: 74
P647: 584.2
P648: 519.7333333
P649: 664.4
P650: 9.533333333
P651: 74
P675: 584.2
P676: 519.7333333
P677: 664.4
P678: 9.533333333
P679: 74
P703: 584.2
P704: 519.7333333
P705: 664.4
P706: 9.533333333
P707: 74
P731: 584.2
P732: 519.7333333
P733: 664.4
P734: 9.533333333
P735: 74
P759: 584.2
P760: 519.7333333
P761: 664.4
P762: 9.533333333
P763: 74

Sheet ÖĞRENCİ SIRALA
A1: ÖĞRENCİ BAŞARI SIRALAMASI
A2: SIRA | B2: ADI SOYADI | C2: PUAN
A3: 1 | B3: MERT ATAKAN | C3: 318.6666667
A4: 2 | B4: MEHMET SAN | C4: 312.3333333
A5: 3 | B5: SADİ DİYE BİRİ | C5: 293.6666667
A6: 4 | B6: ALİ ENDER | C6: 282.8659864
A7: 5 | B7: AHMET KURAL | C7: 269.5
A8: 6 | B8: TARIK EFE | C8: 226.5
A9: 7 | B9: MURATCEMŞİR | C9: 224.5
A10: 8 | B10: SİNEM ÖZSAN | C10: 214
A11: 9 | B11: MURAT ÇELİK | C11: 168.6
A12: 10 | B12: 0
A13: 11 | B13: 0
A14: 12 | B14: 0
A15: 13 | B15: 0
A16: 14 | B16: 0
A17: 15 | B17: 0
A18: 16 | B18: 0
A19: 17 | B19: 0
A20: 18 | B20: 0
A21: 19 | B21: 0
A22: 20 | B22: 0
A23: 21 | B23: 0
A24: 22 | B24: 0
A25: 23 | B25: 0
A26: 24 | B26: 0
A27: 25 | B27: 0
A28: 26 | B28: 0
A29: 27 | B29: 0

Sheet ogrencitakip.4t.com
